{"text_format":"1","workbook":"xlsx","n_sheets":17,"sheets":["Start","Organisationsformen","Bereichsbeziehungen","Layout","Visualisierung","Benchmark","Technik","Fertigung 100 W pro m²","Fertigung 300 W pro m²","Fertigung 500 W pro m²","Montage","Lager in Produktion","Wareneingangslager","Warenausgangslager","Büro- & Sozialräume","Auswertung Logistik","Auswertung Bauphysik"],"not_rendered":{"charts":1,"images":35,"macros":1,"external_links":0,"defined_names":1,"comments":0,"pivot_tables":0},"unopened":[],"bounds":{"document_bytes":16777216,"sheet_cells":100000,"rows_first":2000,"rows_last":500,"rows_between":2000,"halvings":0,"cell_chars":16384,"cell_head_chars":4096},"cells_cut":0,"cells_raw":0,"read":"whole","date_system":"1900"}

{"sheet":"Start","index":0,"n_rows":17,"n_cols":6,"rows_kept":17,"cut":false,"hidden":false,"merged":[[5,1,14,12],[16,5,23,9]]}
[]
[]
[]
[]
[]
[null,"Herzlich Willkommen im Bewertungstool für energie- und materialflusseffiziente Fabriken.\nDieser Software-Demonstrator entstand im Rahmen des Forschungsprojekts \"Ableitung von Empfehlungen zur energie- und materilflusseffizienten Strukturierung und synergetischen Gestaltung von Fabriken\", \nkurz \"Energie- und materialflusseffiziente Fabrikplanung (EnMaFap)\".\nNachdem Sie die Organisationsform Ihrer geplanten Fabrik angegeben haben und evtl. Fertigungs- und Montagelinien definiert haben, können Sie die Materialflussbeziehungen festlegen und anschließend Fabriklayoutvarianten eingeben. Diese Varianten können Sie abschließend bewerten und vergleichen.\nDurch Klicken auf den Reiter \"Organisationsformen festlegen\" beginnen Sie die Planung.\n\nViel Erfolg beim Planen Ihrer energie- und materialflusseffizienten Fabrik!"]
[]
[]
[]
[]
[]
[]
[]
[]
[]
[]
[null,null,null,null,null,"Das IGF-Vorhaben 17077N der Forschungsvereinigung Bundesvereinigung Logistik e.V. - BVL wurde über die AiF im Rahmen des Programms zur Förderung der Industriellen Gemeinschaftsforschung (IGF) vom Bundesministerium für Wirtschaft und Technologie aufgrund eines Beschlusses des Deutschen Bundestages gefördert."]

{"sheet":"Organisationsformen","index":1,"n_rows":8,"n_cols":10,"rows_kept":8,"cut":false,"hidden":false,"merged":[[5,1,5,3],[5,6,5,8]]}
[]
[]
[]
[]
[]
[null,"Organisationsform der Fertigung:",null,null,"Werkstattfertigung",null,"Organisationsform der Montage:",null,null,"Werkstattmontage"]
[]
[null,"*Fertigung*",null,null,"100 W/m²"]

{"sheet":"Bereichsbeziehungen","index":2,"n_rows":28,"n_cols":11,"rows_kept":28,"cut":false,"hidden":false,"merged":[[27,1,27,2],[23,1,23,2],[24,1,24,2],[22,1,22,2],[20,1,20,2],[21,1,21,2],[11,1,11,2],[12,1,12,2],[13,1,13,2],[25,1,25,2],[26,1,26,2],[15,1,15,2],[14,1,14,2],[17,1,17,15],[18,3,19,3],[18,4,19,4],[18,5,19,5],[18,6,19,6],[18,7,19,7],[18,8,19,8],[18,9,19,9],[18,10,19,10],[4,1,5,15],[6,8,7,8],[9,1,9,2],[10,1,10,2],[6,9,7,9],[6,10,7,10],[6,3,7,3],[8,1,8,2],[6,4,7,4],[6,5,7,5],[6,6,7,6],[6,7,7,7]]}
[]
[]
[null,"sehr hoch","hoch","mittel","niedr.","sehr niedr."]
[]
[null,"Bitte tragen Sie in die Materialflussmatrix die Materialflussbeziehungen (Zahlenwerte als Intensitätsindikator) zwischen den angegebenen Bereichen ein. Wenn keine Beziehung besteht, tragen Sie bitte eine \"0\" ein."]
[]
[null,null,"von","*Fertigung*","Montage","Wareneingang","Warenausgang","Produktions-lager","Büro- und Sozialräume","Technik","Summe"]
[null,"nach"]
[null,"*Fertigung*",null,null,null,null,null,null,null,null,{"$f":"SUM(D9:J9)","v":0}]
[null,"Montage",null,null,null,null,null,null,null,null,0]
[null,"Wareneingang",null,null,null,null,null,null,null,null,0]
[null,"Warenausgang",null,null,null,null,null,null,null,null,0]
[null,"Produktionslager",null,null,null,null,null,null,null,null,0]
[null,"Büro- und Sozialräume",null,null,null,null,null,null,null,null,0]
[null,"Technik",null,null,null,null,null,null,null,null,0]
[null,"Summe",null,{"$f":"SUM(D9:D15)","v":0},0,0,0,0,0,0,0]
[]
[null,"Bitte tragen Sie in die Kommunikationsflussmatrix die Kommunikationsbeziehungen (\"sehr hoch\", \"hoch\", \"mittel\", \"niedrig\", \"sehr niedrig\") zwischen den angegebenen Bereichen ein."]
[null,null,"von","*Fertigung*","Montage","Wareneingang","Warenausgang","Produktions-lager","Büro- und Sozialräume","Technik","Summe"]
[null,"nach"]
[null,"*Fertigung*",null,null,null,null,null,null,null,null,{"$f":"SUM(D21:J21)","v":0}]
[null,"Montage",null,null,null,null,null,null,null,null,0]
[null,"Wareneingang",null,null,null,null,null,null,null,null,0]
[null,"Warenausgang",null,null,null,null,null,null,null,null,0]
[null,"Produktionslager",null,null,null,null,null,null,null,null,0]
[null,"Büro- und Sozialräume",null,null,null,null,null,null,null,null,0]
[null,"Technik",null,null,null,null,null,null,null,null,0]
[null,"Summe",null,{"$f":"SUM(D21:D27)","v":0},0,0,0,0,0,0,0]

{"sheet":"Layout","index":3,"n_rows":23,"n_cols":40,"rows_kept":23,"cut":false,"hidden":false,"merged":[[5,39,17,39],[19,39,25,39],[19,37,19,38]]}
[]
[]
[]
[]
[]
[null,null,null,null,null,null,null,null,null,null,null,null,null,null,null,null,null,null,null,null,null,null,null,null,null,null,null,null,null,null,null,null,null,null,null,null,null,null,null,"Layout zeichnen"]
[]
[]
[]
[]
[]
[]
[]
[]
[]
[]
[]
[]
[]
[null,null,null,null,null,null,null,null,null,null,null,null,null,null,null,null,null,null,null,null,null,null,null,null,null,null,null,null,null,null,null,null,null,null,null,null,null,"Bereichsgröße [B x H]",null,"aktuelle Auswahl"]
[]
[]
[null,null,null,null,null,null,null,null,null,null,null,null,null,null,null,null,null,null,null,null,null,null,null,null,null,null,null,null,null,null,null,null,null,null,null,null,null,"Bereichsbezeichnung"]

{"sheet":"Visualisierung","index":4,"n_rows":0,"n_cols":0,"rows_kept":0,"cut":false,"hidden":true,"merged":[]}

{"sheet":"Benchmark","index":5,"n_rows":9,"n_cols":6,"rows_kept":9,"cut":false,"hidden":false,"merged":[[5,1,5,4]]}
[]
[null,null,null,null,null,70]
[null,null,null,null,null,30]
[]
[]
[null,"Gewählte Gewichtung für die Fachsichten:"]
[null,"Architektur",25,"%"]
[null,"Bauphysik",25,"%"]
[null,"Logistik",50,"%"]

{"sheet":"Technik","index":6,"n_rows":83,"n_cols":7,"rows_kept":83,"cut":false,"hidden":true,"merged":[[0,0,0,7],[1,0,83,0],[1,7,83,7],[2,1,2,6],[3,1,14,1],[3,2,3,6],[5,2,5,3],[6,2,6,3],[7,2,7,3],[8,2,8,3],[24,2,25,3],[24,4,25,6],[9,2,9,3],[10,2,10,3],[11,2,11,3],[12,2,14,2],[15,1,15,6],[16,1,25,1],[16,2,16,6],[17,2,17,3],[17,4,17,6],[18,2,19,3],[18,4,19,6],[20,2,21,3],[20,4,21,6],[22,2,23,3],[22,4,23,6],[27,8,34,8],[28,2,28,3],[28,4,28,5],[29,2,30,3],[29,4,30,5],[31,2,32,3],[31,4,32,5],[37,2,37,3],[37,4,37,6],[26,1,26,6],[27,1,50,1],[27,2,27,6],[33,2,34,3],[33,4,34,5],[35,2,35,6],[36,2,36,3],[36,4,36,6],[38,2,38,3],[38,4,38,6],[39,2,39,3],[39,4,39,6],[40,2,40,3],[40,4,40,6],[41,2,41,6],[42,2,42,3],[42,8,50,8],[43,2,43,4],[43,5,43,6],[44,2,47,2],[44,6,47,6],[49,2,49,3],[50,2,50,3],[51,1,51,6],[52,1,80,1],[52,2,52,6],[53,2,53,3],[54,2,54,3],[55,2,55,3],[56,2,56,3],[57,2,57,3],[58,2,58,3],[59,2,59,3],[73,2,73,3],[60,2,60,6],[61,2,61,3],[62,2,62,3],[64,2,64,6],[65,2,65,3],[66,2,66,3],[67,2,67,3],[68,2,68,3],[69,2,69,3],[71,2,71,6],[72,2,72,3],[82,3,82,6],[83,1,83,6],[75,2,75,6],[76,2,76,3],[77,2,77,3],[78,2,78,3],[79,2,79,3],[80,2,80,3]]}
[]
[null,null,null,"ID-Card","Technik"]
[]
[null,"Allgemeine Nutzungsrandbedingungen1","Nutzungszeiten"]
[null,null,null,null,"Einheit","Wert","Erläuterungen"]
[null,null,"Jährliche durchschnittliche Nutzungszeit \n(von xx:xx Uhr bis xx:xx Uhr)",null,"Uhrzeit","07:00 Uhr bis\n16:00 Uhr"]
[null,null,"Anzahl jährliche Nutzungstage",null,"d/a",250]
[null,null,"Jährliche Nutzungsstunden zur Tagzeit \n(Intervall: 06:00 Uhr bis 22:00 Uhr)",null,"h/a",2192]
[null,null,"Jährliche Nutzungsstunden zur Nachtzeit\n(Intervall: 22:00 Uhr bis 06:00 Uhr)",null,"h/a",58]
[null,null,"Tägliche Betriebszeit der Raumlufttechnik (RLT) und Kühlung \n(von xx:xx Uhr bis xx:xx Uhr)",null,"Uhrzeit","05:00 Uhr bis\n16:00 Uhr"]
[null,null,"Tägliche Betriebszeit der Heizung \n(von xx:xx Uhr bis xx:xx Uhr)",null,"Uhrzeit","05:00 Uhr bis\n16:00 Uhr"]
[null,null,"Jährliche durchschnittliche Betriebstage jeweils für ",null,"-","-","-"]
[null,null,null,"RLT","d/a",250]
[null,null,null,"Heizung","d/a",250]
[null,null,null,"Kühlung","d/a",250]
[]
[null,"Prozesse & Logistik","Ablauftechnische und organisatorische Anforderungen und Charakteristika"]
[null,null,null,null,"Beschreibung"]
[null,null,"Modulbeschreibung",null,"Geschlossener Raum, geringer personeller Einsatz (nur temporär)"]
[]
[null,null,"Prozesse incl. Beispiel",null,"Aufbereitung von Medien, Versorgung der Informationssysteme (z. B. Server), Haustechnik"]
[]
[null,null,"organisatorische Anforderungen",null,"sichere Versorgung, räumlich relativ nah zu energieintensiven Prozessen"]
[]
[null,null,"idealtypische Position in der Prozesskette",null,"-"]
[]
[]
[null,"Architektur","Architektur (??)"]
[null,null,null,null,"Beschreibung",null,"Erläuterungen"]
[null,null,"…"]
[]
[null,null,"…"]
[]
[null,null,"…"]
[]
[null,null,"Gebäudestruktur"]
[null,null,null,null,"Wert"]
[null,null,"Tageslichtquotient (D)",null,0]
[null,null,"Fensterfaktor (KF)",null,"KF  = 0"]
[null,null,"Sichtbeziehung nach außen",null,"Sichtbeziehung nach außen ist nicht erforderlich"]
[null,null,"Qualität Innenausbau (1-5)",null,1]
[null,null,"Geometrie"]
[null,null,null,null,"Einheit","Wert","Erläuterungen"]
[null,null,"Raumhöhe"]
[null,null,null,"bis   5000 m3/h Volumenstrom","m","> 2,50","Luftraum (LR)"]
[null,null,null,"bis 10000 m3/h Volumenstrom","m","> 2,50"]
[null,null,null,"bis 15000 m3/h Volumenstrom","m","> 3,00"]
[null,null,null,"bis 20000 m3/h Volumenstrom","m","> 4,00"]
[null,null,"Fläche",null,"Anteil in % an Ages",4]
[null,null,"minimales Raumvolumen",null,"m³","-","keine Vorgabe"]
[null,null,"Geschosse",null,"Anzahl","1"]
[]
[null,"Bauphysik1","Raumkonditionierung"]
[null,null,null,null,"Einheit","Wert","Erläuterungen"]
[null,null,"Raum-Solltemperatur Heizung",null,"°C",17]
[null,null,"Raum-Soltemperatur natürliche Lüftung",null,"°C",26]
[null,null,"Minimaltemperatur Auslegung Heizung",null,"°C",15]
[null,null,"Lüftung",null,"°C",28]
[null,null,"Temperaturabsenkung reduzierter Betrieb",null,"K",4]
[]
[null,null,"Mindestaußenluftvolumenstrom"]
[null,null,null,null,"Einheit","Wert","Erläuterungen"]
[null,null,"Mindestaußenluftvolumenstrom",null,"1/h",0.6,"sofern Zone an Außenwand liegt, kann Wert höher als 0,6 sein."]
[]
[null,null,"Wärmeeinträge"]
[null,null,null,null,"Einheit","Wert","Erläuterungen"]
[null,null,"Maximale Belegungsdichte",null,"m² je Person","-"]
[null,null,"Wärmeenergieeintrag durch Personen  (190W/Person)",null,"W/m²","-"]
[null,null,"Wärmeenergieeintrag durch Anlagen, Transporthilfsmittel etc.",null,"W/m²","ca. 10"]
[null,null,"Wärmeenergiezufuhr je Tag",null,"Wh/(m²*d)","-"]
[]
[null,null,"Beleuchtung"]
[null,null,null,null,"Einheit","Wert","Erläuterungen"]
[null,null,"Wartungswert der Beleuchtungsstärke",null,"lx",100]
[]
[null,null,"Bauteile2"]
[null,null,null,null,"Einheit","Wert","Erläuterungen"]
[null,null,"Dach",null,"U-Wert in W/(m²K)",0.2]
[null,null,"Außenwand",null,"U-Wert in W/(m²K)",0.35]
[null,null,"Unterer Gebäudeabschluss",null,"U-Wert in W/(m²K)",0.35]
[null,null,"Innenwand opak",null,"U-Wert in W/(m²K)",2.5]
[]
[null,null,null,"1: Nutzungsrandbedingungen in Anlehnung an DIN V 18599-10\n2: Bauteilqualität in Anlehung an Anforderungen für Nichtwohngebäude nach EnEV'09"]

{"sheet":"Fertigung 100 W pro m²","index":7,"n_rows":83,"n_cols":7,"rows_kept":83,"cut":false,"hidden":true,"merged":[[0,0,0,7],[1,0,83,0],[1,7,83,7],[2,1,2,6],[3,1,14,1],[3,2,3,6],[5,2,5,3],[6,2,6,3],[7,2,7,3],[8,2,8,3],[24,2,25,3],[24,4,25,6],[9,2,9,3],[10,2,10,3],[11,2,11,3],[12,2,14,2],[15,1,15,6],[16,1,25,1],[16,2,16,6],[17,2,17,3],[17,4,17,6],[18,2,19,3],[18,4,19,6],[20,2,21,3],[20,4,21,6],[22,2,23,3],[22,4,23,6],[37,2,37,3],[26,1,26,6],[27,1,50,1],[27,2,27,6],[27,8,34,8],[28,2,28,3],[28,4,28,5],[29,2,30,3],[29,4,30,5],[31,2,32,3],[31,4,32,5],[33,2,34,3],[33,4,34,5],[35,2,35,6],[36,2,36,3],[36,4,36,6],[38,2,38,3],[38,4,38,6],[39,2,39,3],[39,4,39,6],[40,2,40,3],[40,4,40,6],[41,2,41,6],[42,2,42,3],[42,8,50,8],[43,2,43,4],[43,5,43,6],[44,2,47,2],[44,6,47,6],[49,2,49,3],[50,2,50,3],[51,1,51,6],[52,1,80,1],[52,2,52,6],[53,2,53,3],[54,2,54,3],[55,2,55,3],[56,2,56,3],[57,2,57,3],[58,2,58,3],[59,2,59,3],[73,2,73,3],[60,2,60,6],[61,2,61,3],[62,2,62,3],[64,2,64,6],[65,2,65,3],[66,2,66,3],[67,2,67,3],[68,2,68,3],[69,2,69,3],[71,2,71,6],[72,2,72,3],[82,3,82,6],[83,1,83,6],[75,2,75,6],[76,2,76,3],[77,2,77,3],[78,2,78,3],[79,2,79,3],[80,2,80,3]]}
[]
[null,null,null,"ID-Card","Fertigung (100 W/m²)"]
[]
[null,"Allgemeine Nutzungsrandbedingungen1","Nutzungszeiten"]
[null,null,null,null,"Einheit","Wert","Erläuterungen"]
[null,null,"Jährliche durchschnittliche Nutzungszeit \n(von xx:xx Uhr bis xx:xx Uhr)",null,"Uhrzeit","07:00 Uhr bis 16:00 Uhr"]
[null,null,"Anzahl jährliche Nutzungstage",null,"d/a",250]
[null,null,"Jährliche Nutzungsstunden zur Tagzeit \n(Intervall: 06:00 Uhr bis 22:00 Uhr)",null,"h/a",2192]
[null,null,"Jährliche Nutzungsstunden zur Nachtzeit\n(Intervall: 22:00 Uhr bis 06:00 Uhr)",null,"h/a",58]
[null,null,"Tägliche Betriebszeit der Raumlufttechnik (RLT) und Kühlung \n(von xx:xx Uhr bis xx:xx Uhr)",null,"Uhrzeit","05:00 Uhr bis 16:00 Uhr"]
[null,null,"Tägliche Betriebszeit der Heizung \n(von xx:xx Uhr bis xx:xx Uhr)",null,"Uhrzeit","05:00 Uhr bis 16:00 Uhr"]
[null,null,"Jährliche durchschnittliche Betriebstage jeweils für ",null,"-","-","-"]
[null,null,null,"RLT","d/a",250]
[null,null,null,"Heizung","d/a",250]
[null,null,null,"Kühlung","d/a",250]
[]
[null,"Prozesse & Logistik","Ablauftechnische und organisatorische Anforderungen und Charakteristika"]
[null,null,null,null,"Beschreibung"]
[null,null,"Modulbeschreibung",null,"hoher Anteil der Wertschöpfung durch automatisierte Betriebsmittel, geringer Anteil durch personelle Kapazitäten"]
[]
[null,null,"Prozesse incl. Beispiel",null,"Urformen, Umformen, Trennen, Beschichten, Stoffeigenschaften ändern"]
[]
[null,null,"organisatorische Anforderungen",null,"gradliniger Materialfluss, geringe Durchlaufzeiten, hohe Kapazitätsauslastung, automatisierte Verkettung der Arbeitssysteme"]
[]
[null,null,"idealtypische Position in der Prozesskette",null,"nach Entwicklung, Konstruktion, Arbeitsvorbereitung"]
[]
[]
[null,"Architektur","Architektur (??)"]
[null,null,null,null,"Beschreibung",null,"Erläuterungen"]
[null,null,"…"]
[]
[null,null,"…"]
[]
[null,null,"…"]
[]
[null,null,"Gebäudestruktur"]
[null,null,null,null,"Wert"]
[null,null,"Tageslichtquotient (D)",null,"min: 2%","mittel: 4%","max: 10%"]
[null,null,"Fensterfaktor (KF)",null,"KF > 0,1"]
[null,null,"Sichtbeziehung nach außen",null,"mindestens 10% der Außenwandfläche müssen transparent sein"]
[null,null,"Qualität Innenausbau (1-5)",null,3]
[null,null,"Geometrie"]
[null,null,null,null,"Einheit","Wert","Erläuterungen"]
[null,null,"Raumhöhe"]
[null,null,null,"8 bis 50 m² Raumfläche","m","> 2,50","Luftraum (LR)"]
[null,null,null,"50 m² bis 100 m² Raumfläche","m","> 2,75"]
[null,null,null,"100 - 2000 m² Raumfläche","m","> 3,00"]
[null,null,null,"mehr als 2000 m² Raumfläche","m","> 3,25"]
[null,null,"Fläche",null,"Anteil in % an Ages",24]
[null,null,"minimales Raumvolumen",null,"m³",125,"pro Mitarbeiter"]
[null,null,"Geschosse",null,"Anzahl",1]
[]
[null,"Bauphysik1","Raumkonditionierung"]
[null,null,null,null,"Einheit","Wert","Erläuterungen"]
[null,null,"Raum-Solltemperatur Heizung",null,"°C",17]
[null,null,"Raum-Soltemperatur natürliche Lüftung",null,"°C",26,"gem. ArbSättRL"]
[null,null,"Minimaltemperatur Auslegung Heizung",null,"°C",15]
[null,null,"Lüftung",null,"°C",30]
[null,null,"Temperaturabsenkung reduzierter Betrieb",null,"K",4]
[]
[null,null,"Mindestaußenluftvolumenstrom"]
[null,null,null,null,"Einheit","Wert","Erläuterungen"]
[null,null,"Mindestaußenluftvolumenstrom",null,"1/h",0.6,"sofern Zone an Außenwand liegt, kann Wert höher als 0,6 sein."]
[]
[null,null,"Wärmeeinträge"]
[null,null,null,null,"Einheit","Wert","Erläuterungen"]
[null,null,"Maximale Belegungsdichte",null,"m² je Person","ca. 20"]
[null,null,"Wärmeenergieeintrag durch Personen  (190W/Person)",null,"W/m²","ca. 12"]
[null,null,"Wärmeenergieeintrag durch Anlagen, Transporthilfsmittel etc.",null,"W/m²",100]
[null,null,"Wärmeenergiezufuhr je Tag",null,"Wh/(m²*d)","-"]
[]
[null,null,"Beleuchtung"]
[null,null,null,null,"Einheit","Wert","Erläuterungen"]
[null,null,"Wartungswert der Beleuchtungsstärke",null,"lx",500]
[]
[null,null,"Bauteile2"]
[null,null,null,null,"Einheit","Wert","Erläuterungen"]
[null,null,"Dach",null,"U-Wert in W/(m²K)",0.2]
[null,null,"Außenwand",null,"U-Wert in W/(m²K)",0.35]
[null,null,"Unterer Gebäudeabschluss",null,"U-Wert in W/(m²K)",0.35]
[null,null,"Innenwand opak",null,"U-Wert in W/(m²K)",2.5]
[]
[null,null,null,"1: Nutzungsrandbedingungen in Anlehnung an DIN V 18599-10\n2: Bauteilqualität in Anlehung an Anforderungen für Nichtwohngebäude nach EnEV'09"]

{"sheet":"Fertigung 300 W pro m²","index":8,"n_rows":83,"n_cols":7,"rows_kept":83,"cut":false,"hidden":true,"merged":[[0,0,0,7],[1,0,83,0],[1,7,83,7],[2,1,2,6],[3,1,14,1],[3,2,3,6],[5,2,5,3],[6,2,6,3],[7,2,7,3],[8,2,8,3],[24,2,25,3],[24,4,25,6],[9,2,9,3],[10,2,10,3],[11,2,11,3],[12,2,14,2],[15,1,15,6],[16,1,25,1],[16,2,16,6],[17,2,17,3],[17,4,17,6],[18,2,19,3],[18,4,19,6],[20,2,21,3],[20,4,21,6],[22,2,23,3],[22,4,23,6],[37,2,37,3],[26,1,26,6],[27,1,50,1],[27,2,27,6],[27,8,34,8],[28,2,28,3],[28,4,28,5],[29,2,30,3],[29,4,30,5],[31,2,32,3],[31,4,32,5],[33,2,34,3],[33,4,34,5],[35,2,35,6],[36,2,36,3],[36,4,36,6],[38,2,38,3],[38,4,38,6],[39,2,39,3],[39,4,39,6],[40,2,40,3],[40,4,40,6],[41,2,41,6],[42,2,42,3],[42,8,50,8],[43,2,43,4],[43,5,43,6],[44,2,47,2],[44,6,47,6],[49,2,49,3],[50,2,50,3],[51,1,51,6],[52,1,80,1],[52,2,52,6],[53,2,53,3],[54,2,54,3],[55,2,55,3],[56,2,56,3],[57,2,57,3],[58,2,58,3],[59,2,59,3],[73,2,73,3],[60,2,60,6],[61,2,61,3],[62,2,62,3],[64,2,64,6],[65,2,65,3],[66,2,66,3],[67,2,67,3],[68,2,68,3],[69,2,69,3],[71,2,71,6],[72,2,72,3],[82,3,82,6],[83,1,83,6],[75,2,75,6],[76,2,76,3],[77,2,77,3],[78,2,78,3],[79,2,79,3],[80,2,80,3]]}
[]
[null,null,null,"ID-Card","Fertigung (300 W/m²)"]
[]
[null,"Allgemeine Nutzungsrandbedingungen1","Nutzungszeiten"]
[null,null,null,null,"Einheit","Wert","Erläuterungen"]
[null,null,"Jährliche durchschnittliche Nutzungszeit \n(von xx:xx Uhr bis xx:xx Uhr)",null,"Uhrzeit","07:00 Uhr bis 16:00 Uhr"]
[null,null,"Anzahl jährliche Nutzungstage",null,"d/a",250]
[null,null,"Jährliche Nutzungsstunden zur Tagzeit \n(Intervall: 06:00 Uhr bis 22:00 Uhr)",null,"h/a",2192]
[null,null,"Jährliche Nutzungsstunden zur Nachtzeit\n(Intervall: 22:00 Uhr bis 06:00 Uhr)",null,"h/a",58]
[null,null,"Tägliche Betriebszeit der Raumlufttechnik (RLT) und Kühlung \n(von xx:xx Uhr bis xx:xx Uhr)",null,"Uhrzeit","05:00 Uhr bis 16:00 Uhr"]
[null,null,"Tägliche Betriebszeit der Heizung \n(von xx:xx Uhr bis xx:xx Uhr)",null,"Uhrzeit","05:00 Uhr bis 16:00 Uhr"]
[null,null,"Jährliche durchschnittliche Betriebstage jeweils für ",null,"-","-","-"]
[null,null,null,"RLT","d/a",250]
[null,null,null,"Heizung","d/a",250]
[null,null,null,"Kühlung","d/a",250]
[]
[null,"Prozesse & Logistik","Ablauftechnische und organisatorische Anforderungen und Charakteristika"]
[null,null,null,null,"Beschreibung"]
[null,null,"Modulbeschreibung",null,"hoher Anteil der Wertschöpfung durch automatisierte Betriebsmittel, geringer Anteil durch personelle Kapazitäten"]
[]
[null,null,"Prozesse incl. Beispiel",null,"Urformen, Umformen, Trennen, Beschichten, Stoffeigenschaften ändern"]
[]
[null,null,"organisatorische Anforderungen",null,"gradliniger Materialfluss, geringe Durchlaufzeiten, hohe Kapazitätsauslastung, automatisierte Verkettung der Arbeitssysteme"]
[]
[null,null,"idealtypische Position in der Prozesskette",null,"nach Entwicklung, Konstruktion, Arbeitsvorbereitung"]
[]
[]
[null,"Architektur","Architektur (??)"]
[null,null,null,null,"Beschreibung",null,"Erläuterungen"]
[null,null,"…"]
[]
[null,null,"…"]
[]
[null,null,"…"]
[]
[null,null,"Gebäudestruktur"]
[null,null,null,null,"Wert"]
[null,null,"Tageslichtquotient (D)",null,"min: 2%","mittel: 4%","max: 10%"]
[null,null,"Fensterfaktor (KF)",null,"KF > 0,1"]
[null,null,"Sichtbeziehung nach außen",null,"mindestens 10% der Außenwandfläche müssen transparent sein"]
[null,null,"Qualität Innenausbau (1-5)",null,3]
[null,null,"Geometrie"]
[null,null,null,null,"Einheit","Wert","Erläuterungen"]
[null,null,"Raumhöhe"]
[null,null,null,"8 bis 50 m² Raumfläche","m","> 2,50","Luftraum (LR)"]
[null,null,null,"50 m² bis 100 m² Raumfläche","m","> 2,75"]
[null,null,null,"100 - 2000 m² Raumfläche","m","> 3,00"]
[null,null,null,"mehr als 2000 m² Raumfläche","m","> 3,25"]
[null,null,"Fläche",null,"Anteil in % an Ages",24]
[null,null,"minimales Raumvolumen",null,"m³",125,"pro Mitarbeiter"]
[null,null,"Geschosse",null,"Anzahl",1]
[]
[null,"Bauphysik1","Raumkonditionierung"]
[null,null,null,null,"Einheit","Wert","Erläuterungen"]
[null,null,"Raum-Solltemperatur Heizung",null,"°C",17]
[null,null,"Raum-Soltemperatur natürliche Lüftung",null,"°C",26,"gem. ArbSättRL"]
[null,null,"Minimaltemperatur Auslegung Heizung",null,"°C",15]
[null,null,"Lüftung",null,"°C",30]
[null,null,"Temperaturabsenkung reduzierter Betrieb",null,"K",4]
[]
[null,null,"Mindestaußenluftvolumenstrom"]
[null,null,null,null,"Einheit","Wert","Erläuterungen"]
[null,null,"Mindestaußenluftvolumenstrom",null,"1/h",0.6,"sofern Zone an Außenwand liegt, kann Wert höher als 0,6 sein."]
[]
[null,null,"Wärmeeinträge"]
[null,null,null,null,"Einheit","Wert","Erläuterungen"]
[null,null,"Maximale Belegungsdichte",null,"m² je Person","ca. 20"]
[null,null,"Wärmeenergieeintrag durch Personen  (190W/Person)",null,"W/m²","ca. 12"]
[null,null,"Wärmeenergieeintrag durch Anlagen, Transporthilfsmittel etc.",null,"W/m²",300]
[null,null,"Wärmeenergiezufuhr je Tag",null,"Wh/(m²*d)","-"]
[]
[null,null,"Beleuchtung"]
[null,null,null,null,"Einheit","Wert","Erläuterungen"]
[null,null,"Wartungswert der Beleuchtungsstärke",null,"lx",500]
[]
[null,null,"Bauteile2"]
[null,null,null,null,"Einheit","Wert","Erläuterungen"]
[null,null,"Dach",null,"U-Wert in W/(m²K)",0.2]
[null,null,"Außenwand",null,"U-Wert in W/(m²K)",0.35]
[null,null,"Unterer Gebäudeabschluss",null,"U-Wert in W/(m²K)",0.35]
[null,null,"Innenwand opak",null,"U-Wert in W/(m²K)",2.5]
[]
[null,null,null,"1: Nutzungsrandbedingungen in Anlehnung an DIN V 18599-10\n2: Bauteilqualität in Anlehung an Anforderungen für Nichtwohngebäude nach EnEV'09"]

{"sheet":"Fertigung 500 W pro m²","index":9,"n_rows":83,"n_cols":7,"rows_kept":83,"cut":false,"hidden":true,"merged":[[0,0,0,7],[1,0,83,0],[1,7,83,7],[2,1,2,6],[3,1,14,1],[3,2,3,6],[5,2,5,3],[6,2,6,3],[7,2,7,3],[8,2,8,3],[24,2,25,3],[24,4,25,6],[9,2,9,3],[10,2,10,3],[11,2,11,3],[12,2,14,2],[15,1,15,6],[16,1,25,1],[16,2,16,6],[17,2,17,3],[17,4,17,6],[18,2,19,3],[18,4,19,6],[20,2,21,3],[20,4,21,6],[22,2,23,3],[22,4,23,6],[37,2,37,3],[26,1,26,6],[27,1,50,1],[27,2,27,6],[27,8,34,8],[28,2,28,3],[28,4,28,5],[29,2,30,3],[29,4,30,5],[31,2,32,3],[31,4,32,5],[33,2,34,3],[33,4,34,5],[35,2,35,6],[36,2,36,3],[36,4,36,6],[38,2,38,3],[38,4,38,6],[39,2,39,3],[39,4,39,6],[40,2,40,3],[40,4,40,6],[41,2,41,6],[42,2,42,3],[42,8,50,8],[43,2,43,4],[43,5,43,6],[44,2,47,2],[44,6,47,6],[49,2,49,3],[50,2,50,3],[51,1,51,6],[52,1,80,1],[52,2,52,6],[53,2,53,3],[54,2,54,3],[55,2,55,3],[56,2,56,3],[57,2,57,3],[58,2,58,3],[59,2,59,3],[73,2,73,3],[60,2,60,6],[61,2,61,3],[62,2,62,3],[64,2,64,6],[65,2,65,3],[66,2,66,3],[67,2,67,3],[68,2,68,3],[69,2,69,3],[71,2,71,6],[72,2,72,3],[82,3,82,6],[83,1,83,6],[75,2,75,6],[76,2,76,3],[77,2,77,3],[78,2,78,3],[79,2,79,3],[80,2,80,3]]}
[]
[null,null,null,"ID-Card","Fertigung (500 W/m²)"]
[]
[null,"Allgemeine Nutzungsrandbedingungen1","Nutzungszeiten"]
[null,null,null,null,"Einheit","Wert","Erläuterungen"]
[null,null,"Jährliche durchschnittliche Nutzungszeit \n(von xx:xx Uhr bis xx:xx Uhr)",null,"Uhrzeit","07:00 Uhr bis 16:00 Uhr"]
[null,null,"Anzahl jährliche Nutzungstage",null,"d/a",250]
[null,null,"Jährliche Nutzungsstunden zur Tagzeit \n(Intervall: 06:00 Uhr bis 22:00 Uhr)",null,"h/a",2192]
[null,null,"Jährliche Nutzungsstunden zur Nachtzeit\n(Intervall: 22:00 Uhr bis 06:00 Uhr)",null,"h/a",58]
[null,null,"Tägliche Betriebszeit der Raumlufttechnik (RLT) und Kühlung \n(von xx:xx Uhr bis xx:xx Uhr)",null,"Uhrzeit","05:00 Uhr bis 16:00 Uhr"]
[null,null,"Tägliche Betriebszeit der Heizung \n(von xx:xx Uhr bis xx:xx Uhr)",null,"Uhrzeit","05:00 Uhr bis 16:00 Uhr"]
[null,null,"Jährliche durchschnittliche Betriebstage jeweils für ",null,"-","-","-"]
[null,null,null,"RLT","d/a",250]
[null,null,null,"Heizung","d/a",250]
[null,null,null,"Kühlung","d/a",250]
[]
[null,"Prozesse & Logistik","Ablauftechnische und organisatorische Anforderungen und Charakteristika"]
[null,null,null,null,"Beschreibung"]
[null,null,"Modulbeschreibung",null,"hoher Anteil der Wertschöpfung durch automatisierte Betriebsmittel, geringer Anteil durch personelle Kapazitäten"]
[]
[null,null,"Prozesse incl. Beispiel",null,"Urformen, Umformen, Trennen, Beschichten, Stoffeigenschaften ändern"]
[]
[null,null,"organisatorische Anforderungen",null,"gradliniger Materialfluss, geringe Durchlaufzeiten, hohe Kapazitätsauslastung, automatisierte Verkettung der Arbeitssysteme"]
[]
[null,null,"idealtypische Position in der Prozesskette",null,"nach Entwicklung, Konstruktion, Arbeitsvorbereitung"]
[]
[]
[null,"Architektur","Architektur (??)"]
[null,null,null,null,"Beschreibung",null,"Erläuterungen"]
[null,null,"…"]
[]
[null,null,"…"]
[]
[null,null,"…"]
[]
[null,null,"Gebäudestruktur"]
[null,null,null,null,"Wert"]
[null,null,"Tageslichtquotient (D)",null,"min: 2%","mittel: 4%","max: 10%"]
[null,null,"Fensterfaktor (KF)",null,"KF > 0,1"]
[null,null,"Sichtbeziehung nach außen",null,"mindestens 10% der Außenwandfläche müssen transparent sein"]
[null,null,"Qualität Innenausbau (1-5)",null,3]
[null,null,"Geometrie"]
[null,null,null,null,"Einheit","Wert","Erläuterungen"]
[null,null,"Raumhöhe"]
[null,null,null,"8 bis 50 m² Raumfläche","m","> 2,50","Luftraum (LR)"]
[null,null,null,"50 m² bis 100 m² Raumfläche","m","> 2,75"]
[null,null,null,"100 - 2000 m² Raumfläche","m","> 3,00"]
[null,null,null,"mehr als 2000 m² Raumfläche","m","> 3,25"]
[null,null,"Fläche",null,"Anteil in % an Ages",24]
[null,null,"minimales Raumvolumen",null,"m³",125,"pro Mitarbeiter"]
[null,null,"Geschosse",null,"Anzahl",1]
[]
[null,"Bauphysik1","Raumkonditionierung"]
[null,null,null,null,"Einheit","Wert","Erläuterungen"]
[null,null,"Raum-Solltemperatur Heizung",null,"°C",17]
[null,null,"Raum-Soltemperatur natürliche Lüftung",null,"°C",26,"gem. ArbSättRL"]
[null,null,"Minimaltemperatur Auslegung Heizung",null,"°C",15]
[null,null,"Lüftung",null,"°C",30]
[null,null,"Temperaturabsenkung reduzierter Betrieb",null,"K",4]
[]
[null,null,"Mindestaußenluftvolumenstrom"]
[null,null,null,null,"Einheit","Wert","Erläuterungen"]
[null,null,"Mindestaußenluftvolumenstrom",null,"1/h",0.6,"sofern Zone an Außenwand liegt, kann Wert höher als 0,6 sein."]
[]
[null,null,"Wärmeeinträge"]
[null,null,null,null,"Einheit","Wert","Erläuterungen"]
[null,null,"Maximale Belegungsdichte",null,"m² je Person","ca. 20"]
[null,null,"Wärmeenergieeintrag durch Personen  (190W/Person)",null,"W/m²","ca. 12"]
[null,null,"Wärmeenergieeintrag durch Anlagen, Transporthilfsmittel etc.",null,"W/m²",500]
[null,null,"Wärmeenergiezufuhr je Tag",null,"Wh/(m²*d)","-"]
[]
[null,null,"Beleuchtung"]
[null,null,null,null,"Einheit","Wert","Erläuterungen"]
[null,null,"Wartungswert der Beleuchtungsstärke",null,"lx",500]
[]
[null,null,"Bauteile2"]
[null,null,null,null,"Einheit","Wert","Erläuterungen"]
[null,null,"Dach",null,"U-Wert in W/(m²K)",0.2]
[null,null,"Außenwand",null,"U-Wert in W/(m²K)",0.35]
[null,null,"Unterer Gebäudeabschluss",null,"U-Wert in W/(m²K)",0.35]
[null,null,"Innenwand opak",null,"U-Wert in W/(m²K)",2.5]
[]
[null,null,null,"1: Nutzungsrandbedingungen in Anlehnung an DIN V 18599-10\n2: Bauteilqualität in Anlehung an Anforderungen für Nichtwohngebäude nach EnEV'09"]

{"sheet":"Montage","index":10,"n_rows":83,"n_cols":7,"rows_kept":83,"cut":false,"hidden":true,"merged":[[0,0,0,8],[1,0,83,0],[1,7,83,7],[2,1,2,6],[3,1,14,1],[3,2,3,6],[5,2,5,3],[6,2,6,3],[7,2,7,3],[8,2,8,3],[24,2,25,3],[24,4,25,6],[9,2,9,3],[10,2,10,3],[11,2,11,3],[12,2,14,2],[15,1,15,6],[16,1,25,1],[16,2,16,6],[17,2,17,3],[17,4,17,6],[18,2,19,3],[18,4,19,6],[20,2,21,3],[20,4,21,6],[22,2,23,3],[22,4,23,6],[37,2,37,3],[26,1,26,6],[27,1,50,1],[27,2,27,6],[27,8,34,8],[28,2,28,3],[28,4,28,5],[29,2,30,3],[29,4,30,5],[31,2,32,3],[31,4,32,5],[33,2,34,3],[33,4,34,5],[35,2,35,6],[36,2,36,3],[36,4,36,6],[38,2,38,3],[38,4,38,6],[39,2,39,3],[39,4,39,6],[40,2,40,3],[40,4,40,6],[41,2,41,6],[42,2,42,3],[42,8,50,8],[43,2,43,4],[43,5,43,6],[44,2,47,2],[44,6,47,6],[49,2,49,3],[50,2,50,3],[51,1,51,6],[52,1,80,1],[52,2,52,6],[53,2,53,3],[54,2,54,3],[55,2,55,3],[56,2,56,3],[57,2,57,3],[58,2,58,3],[59,2,59,3],[73,2,73,3],[60,2,60,6],[61,2,61,3],[62,2,62,3],[64,2,64,6],[65,2,65,3],[66,2,66,3],[67,2,67,3],[68,2,68,3],[69,2,69,3],[71,2,71,6],[72,2,72,3],[82,3,82,6],[83,1,83,6],[75,2,75,6],[76,2,76,3],[77,2,77,3],[78,2,78,3],[79,2,79,3],[80,2,80,3]]}
[]
[null,null,null,"ID-Card","Montage"]
[]
[null,"Allgemeine Nutzungsrandbedingungen1","Nutzungszeiten"]
[null,null,null,null,"Einheit","Wert","Erläuterungen"]
[null,null,"Jährliche durchschnittliche Nutzungszeit \n(von xx:xx Uhr bis xx:xx Uhr)",null,"Uhrzeit","07:00 Uhr bis\n16:00 Uhr"]
[null,null,"Anzahl jährliche Nutzungstage",null,"d/a",250]
[null,null,"Jährliche Nutzungsstunden zur Tagzeit \n(Intervall: 06:00 Uhr bis 22:00 Uhr)",null,"h/a",2192]
[null,null,"Jährliche Nutzungsstunden zur Nachtzeit\n(Intervall: 22:00 Uhr bis 06:00 Uhr)",null,"h/a",58]
[null,null,"Tägliche Betriebszeit der Raumlufttechnik (RLT) und Kühlung \n(von xx:xx Uhr bis xx:xx Uhr)",null,"Uhrzeit","05:00 Uhr bis\n16:00 Uhr"]
[null,null,"Tägliche Betriebszeit der Heizung \n(von xx:xx Uhr bis xx:xx Uhr)",null,"Uhrzeit","05:00 Uhr bis\n16:00 Uhr"]
[null,null,"Jährliche durchschnittliche Betriebstage jeweils für ",null,"-","-","-"]
[null,null,null,"RLT","d/a",250]
[null,null,null,"Heizung","d/a",250]
[null,null,null,"Kühlung","d/a",250]
[]
[null,"Prozesse & Logistik","Ablauftechnische und organisatorische Anforderungen und Charakteristika"]
[null,null,null,null,"Beschreibung"]
[null,null,"Modulbeschreibung",null,"mittlerer bis hoher Anteil der Wertschöpfung durch personelle Kapazitäten, niedriger bis mittlerer Anteil durch automatisierte Betriebsmittel"]
[]
[null,null,"Prozesse incl. Beispiel",null,"Fügen. Transportieren, Handhaben, Kontrollieren (Qualitätssicherung etc.)"]
[]
[null,null,"organisatorische Anforderungen",null,"Flussgerechte Materialbewegung, geringe Montagedurchlaufzeit, hohe Transparenz der Montageaufgaben, hohe Auslastung der Montagesysteme"]
[]
[null,null,"idealtypische Position in der Prozesskette",null,"nach Fertigung"]
[]
[]
[null,"Architektur","Architektur (??)"]
[null,null,null,null,"Beschreibung",null,"Erläuterungen"]
[null,null,"…"]
[]
[null,null,"…"]
[]
[null,null,"…"]
[]
[null,null,"Gebäudestruktur"]
[null,null,null,null,"Wert"]
[null,null,"Tageslichtquotient (D)",null,"min: 2%","mittel: 4%","max: 10%"]
[null,null,"Fensterfaktor (KF)",null,"KF > 0,1"]
[null,null,"Sichtbeziehung nach außen",null,"mindestens 10% der Außenwandfläche müssen transparent sein"]
[null,null,"Qualität Innenausbau (1-5)",null,3]
[null,null,"Geometrie"]
[null,null,null,null,"Einheit","Wert","Erläuterungen"]
[null,null,"Raumhöhe"]
[null,null,null,"8 bis 50 m² Raumfläche","m","> 2,50","Luftraum (LR)"]
[null,null,null,"50 m² bis 100 m² Raumfläche","m","> 2,75"]
[null,null,null,"100 - 2000 m² Raumfläche","m","> 3,00"]
[null,null,null,"mehr als 2000 m² Raumfläche","m","> 3,25"]
[null,null,"Fläche",null,"Anteil in % an Ages",24]
[null,null,"minimales Raumvolumen",null,"m³",125,"pro Mitarbeiter"]
[null,null,"Geschosse",null,"Anzahl",1]
[]
[null,"Bauphysik1","Raumkonditionierung"]
[null,null,null,null,"Einheit","Wert","Erläuterungen"]
[null,null,"Raum-Solltemperatur Heizung",null,"°C",17]
[null,null,"Raum-Soltemperatur natürliche Lüftung",null,"°C",26,"gem. ArbSättRL"]
[null,null,"Minimaltemperatur Auslegung Heizung",null,"°C",15]
[null,null,"Lüftung",null,"°C",30]
[null,null,"Temperaturabsenkung reduzierter Betrieb",null,"K",4]
[]
[null,null,"Mindestaußenluftvolumenstrom"]
[null,null,null,null,"Einheit","Wert","Erläuterungen"]
[null,null,"Mindestaußenluftvolumenstrom",null,"1/h",0.6,"sofern Zone an Außenwand liegt, kann Wert höher als 0,6 sein."]
[]
[null,null,"Wärmeeinträge"]
[null,null,null,null,"Einheit","Wert","Erläuterungen"]
[null,null,"Maximale Belegungsdichte",null,"m² je Person","ca. 20"]
[null,null,"Wärmeenergieeintrag durch Personen  (190W/Person)",null,"W/m²","ca. 12"]
[null,null,"Wärmeenergieeintrag durch Anlagen, Transporthilfsmittel etc.",null,"W/m²",35]
[null,null,"Wärmeenergiezufuhr je Tag",null,"Wh/(m²*d)","-"]
[]
[null,null,"Beleuchtung"]
[null,null,null,null,"Einheit","Wert","Erläuterungen"]
[null,null,"Wartungswert der Beleuchtungsstärke",null,"lx",500]
[]
[null,null,"Bauteile2"]
[null,null,null,null,"Einheit","Wert","Erläuterungen"]
[null,null,"Dach",null,"U-Wert in W/(m²K)",0.2]
[null,null,"Außenwand",null,"U-Wert in W/(m²K)",0.35]
[null,null,"Unterer Gebäudeabschluss",null,"U-Wert in W/(m²K)",0.35]
[null,null,"Innenwand opak",null,"U-Wert in W/(m²K)",2.5]
[]
[null,null,null,"1: Nutzungsrandbedingungen in Anlehnung an DIN V 18599-10\n2: Bauteilqualität in Anlehung an Anforderungen für Nichtwohngebäude nach EnEV'09"]

{"sheet":"Lager in Produktion","index":11,"n_rows":83,"n_cols":7,"rows_kept":83,"cut":false,"hidden":true,"merged":[[0,0,0,7],[1,0,83,0],[1,7,83,7],[2,1,2,6],[3,1,14,1],[3,2,3,6],[5,2,5,3],[6,2,6,3],[7,2,7,3],[8,2,8,3],[24,2,25,3],[24,4,25,6],[9,2,9,3],[10,2,10,3],[11,2,11,3],[12,2,14,2],[15,1,15,6],[16,1,25,1],[16,2,16,6],[17,2,17,3],[17,4,17,6],[18,2,19,3],[18,4,19,6],[20,2,21,3],[20,4,21,6],[22,2,23,3],[22,4,23,6],[37,2,37,3],[26,1,26,6],[27,1,50,1],[27,2,27,6],[27,8,34,8],[28,2,28,3],[28,4,28,5],[29,2,30,3],[29,4,30,5],[31,2,32,3],[31,4,32,5],[33,2,34,3],[33,4,34,5],[35,2,35,6],[36,2,36,3],[36,4,36,6],[38,2,38,3],[38,4,38,6],[39,2,39,3],[39,4,39,6],[40,2,40,3],[40,4,40,6],[41,2,41,6],[42,2,42,3],[42,8,50,8],[43,2,43,4],[43,5,43,6],[44,2,47,2],[44,6,47,6],[49,2,49,3],[50,2,50,3],[51,1,51,6],[52,1,80,1],[52,2,52,6],[53,2,53,3],[54,2,54,3],[55,2,55,3],[56,2,56,3],[57,2,57,3],[58,2,58,3],[59,2,59,3],[73,2,73,3],[60,2,60,6],[61,2,61,3],[62,2,62,3],[64,2,64,6],[65,2,65,3],[66,2,66,3],[67,2,67,3],[68,2,68,3],[69,2,69,3],[71,2,71,6],[72,2,72,3],[82,3,82,6],[83,1,83,6],[75,2,75,6],[76,2,76,3],[77,2,77,3],[78,2,78,3],[79,2,79,3],[80,2,80,3]]}
[]
[null,null,null,"ID-Card","Lager in der Produktion"]
[]
[null,"Allgemeine Nutzungsrandbedingungen1","Nutzungszeiten"]
[null,null,null,null,"Einheit","Wert","Erläuterungen"]
[null,null,"Jährliche durchschnittliche Nutzungszeit \n(von xx:xx Uhr bis xx:xx Uhr)",null,"Uhrzeit","00:00 Uhr bis\n24:00 Uhr"]
[null,null,"Anzahl jährliche Nutzungstage",null,"d/a",365]
[null,null,"Jährliche Nutzungsstunden zur Tagzeit \n(Intervall: 06:00 Uhr bis 22:00 Uhr)",null,"h/a",4407]
[null,null,"Jährliche Nutzungsstunden zur Nachtzeit\n(Intervall: 22:00 Uhr bis 06:00 Uhr)",null,"h/a",4353]
[null,null,"Tägliche Betriebszeit der Raumlufttechnik (RLT) und Kühlung \n(von xx:xx Uhr bis xx:xx Uhr)",null,"Uhrzeit","00:00 Uhr bis\n24:00 Uhr"]
[null,null,"Tägliche Betriebszeit der Heizung \n(von xx:xx Uhr bis xx:xx Uhr)",null,"Uhrzeit","00:00 Uhr bis\n24:00 Uhr"]
[null,null,"Jährliche durchschnittliche Betriebstage jeweils für ",null,"-","-","-"]
[null,null,null,"RLT","d/a",365]
[null,null,null,"Heizung","d/a",365]
[null,null,null,"Kühlung","d/a",365]
[]
[null,"Prozesse & Logistik","Ablauftechnische und organisatorische Anforderungen und Charakteristika"]
[null,null,null,null,"Beschreibung"]
[null,null,"Modulbeschreibung",null,"Modul zum lagern und puffern von Artikeln, Entkopplung von produktiven Bereichen; wenig Personal und Betriebsmittel im Modul"]
[]
[null,null,"Prozesse incl. Beispiel",null,"Lagerung, Pufferung"]
[]
[null,null,"organisatorische Anforderungen",null,"sichere Versorgung aller produktiven Bereiche"]
[]
[null,null,"idealtypische Position in der Prozesskette",null,"beliebig"]
[]
[]
[null,"Architektur","Architektur (??)"]
[null,null,null,null,"Beschreibung",null,"Erläuterungen"]
[null,null,"…"]
[]
[null,null,"…"]
[]
[null,null,"…"]
[]
[null,null,"Gebäudestruktur"]
[null,null,null,null,"Wert"]
[null,null,"Tageslichtquotient (D)",null,"min: 2%","mittel: 4%","max: 10%"]
[null,null,"Fensterfaktor (KF)",null,"KF > 0,1"]
[null,null,"Sichtbeziehung nach außen",null,"mindestens 10% der Außenwandfläche müssen transparent sein"]
[null,null,"Qualität Innenausbau (1-5)",null,2]
[null,null,"Geometrie"]
[null,null,null,null,"Einheit","Wert","Erläuterungen"]
[null,null,"Raumhöhe"]
[null,null,null,"Handregallager einstöckig (zweistöckig)","m","> 3","Luftraum (LR)"]
[null,null,null,"Palettenlager mit Staplerbetrieb","m","> 6"]
[null,null,null,"Hochregallager mit Hochregalstapler","m","> 9"]
[null,null,null,"Hochregallager mit Stapelkran","m",">25"]
[null,null,"Fläche",null,"Anteil in % an Ages",32]
[null,null,"minimales Raumvolumen",null,"m³","-","keine Vorgabe"]
[null,null,"Geschosse",null,"Anzahl",1]
[]
[null,"Bauphysik1","Raumkonditionierung"]
[null,null,null,null,"Einheit","Wert","Erläuterungen"]
[null,null,"Raum-Solltemperatur Heizung",null,"°C",12]
[null,null,"Raum-Soltemperatur natürliche Lüftung",null,"°C",26,"gem. ArbSättRL"]
[null,null,"Minimaltemperatur Auslegung Heizung",null,"°C",12]
[null,null,"Lüftung",null,"°C",28]
[null,null,"Temperaturabsenkung reduzierter Betrieb",null,"K",0]
[]
[null,null,"Mindestaußenluftvolumenstrom"]
[null,null,null,null,"Einheit","Wert","Erläuterungen"]
[null,null,"Mindestaußenluftvolumenstrom",null,"1/h",0.6,"sofern Zone an Außenwand liegt, kann Wert höher als 0,6 sein."]
[]
[null,null,"Wärmeeinträge"]
[null,null,null,null,"Einheit","Wert","Erläuterungen"]
[null,null,"Maximale Belegungsdichte",null,"m² je Person","-"]
[null,null,"Wärmeenergieeintrag durch Personen  (190W/Person)",null,"W/m²","-"]
[null,null,"Wärmeenergieeintrag durch Anlagen, Transporthilfsmittel etc.",null,"W/m²","-"]
[null,null,"Wärmeenergiezufuhr je Tag",null,"Wh/(m²*d)","-"]
[]
[null,null,"Beleuchtung"]
[null,null,null,null,"Einheit","Wert","Erläuterungen"]
[null,null,"Wartungswert der Beleuchtungsstärke",null,"lx",100]
[]
[null,null,"Bauteile2"]
[null,null,null,null,"Einheit","Wert","Erläuterungen"]
[null,null,"Dach",null,"U-Wert in W/(m²K)",0.2]
[null,null,"Außenwand",null,"U-Wert in W/(m²K)",0.35]
[null,null,"Unterer Gebäudeabschluss",null,"U-Wert in W/(m²K)",0.35]
[null,null,"Innenwand opak",null,"U-Wert in W/(m²K)",2.5]
[]
[null,null,null,"1: Nutzungsrandbedingungen in Anlehnung an DIN V 18599-10\n2: Bauteilqualität in Anlehung an Anforderungen für Nichtwohngebäude nach EnEV'09"]

{"sheet":"Wareneingangslager","index":12,"n_rows":83,"n_cols":7,"rows_kept":83,"cut":false,"hidden":true,"merged":[[0,0,0,7],[1,0,83,0],[1,7,83,7],[2,1,2,6],[3,1,14,1],[3,2,3,6],[5,2,5,3],[6,2,6,3],[7,2,7,3],[8,2,8,3],[24,2,25,3],[24,4,25,6],[9,2,9,3],[10,2,10,3],[11,2,11,3],[12,2,14,2],[15,1,15,6],[16,1,25,1],[16,2,16,6],[17,2,17,3],[17,4,17,6],[18,2,19,3],[18,4,19,6],[20,2,21,3],[20,4,21,6],[22,2,23,3],[22,4,23,6],[37,2,37,3],[26,1,26,6],[27,1,50,1],[27,2,27,6],[27,8,34,8],[28,2,28,3],[28,4,28,5],[29,2,30,3],[29,4,30,5],[31,2,32,3],[31,4,32,5],[33,2,34,3],[33,4,34,5],[35,2,35,6],[36,2,36,3],[36,4,36,6],[38,2,38,3],[38,4,38,6],[39,2,39,3],[39,4,39,6],[40,2,40,3],[40,4,40,6],[41,2,41,6],[42,2,42,3],[42,8,50,8],[43,2,43,4],[43,5,43,6],[44,2,47,2],[44,6,47,6],[49,2,49,3],[50,2,50,3],[51,1,51,6],[52,1,80,1],[52,2,52,6],[53,2,53,3],[54,2,54,3],[55,2,55,3],[56,2,56,3],[57,2,57,3],[58,2,58,3],[59,2,59,3],[73,2,73,3],[60,2,60,6],[61,2,61,3],[62,2,62,3],[64,2,64,6],[65,2,65,3],[66,2,66,3],[67,2,67,3],[68,2,68,3],[69,2,69,3],[71,2,71,6],[72,2,72,3],[82,3,82,6],[83,1,83,6],[75,2,75,6],[76,2,76,3],[77,2,77,3],[78,2,78,3],[79,2,79,3],[80,2,80,3]]}
[]
[null,null,null,"ID-Card","Wareneingangslager"]
[]
[null,"Allgemeine Nutzungsrandbedingungen1","Nutzungszeiten"]
[null,null,null,null,"Einheit","Wert","Erläuterungen"]
[null,null,"Jährliche durchschnittliche Nutzungszeit \n(von xx:xx Uhr bis xx:xx Uhr)",null,"Uhrzeit","00:00 Uhr bis\n24:00 Uhr"]
[null,null,"Anzahl jährliche Nutzungstage",null,"d/a",365]
[null,null,"Jährliche Nutzungsstunden zur Tagzeit \n(Intervall: 06:00 Uhr bis 22:00 Uhr)",null,"h/a",4407]
[null,null,"Jährliche Nutzungsstunden zur Nachtzeit\n(Intervall: 22:00 Uhr bis 06:00 Uhr)",null,"h/a",4353]
[null,null,"Tägliche Betriebszeit der Raumlufttechnik (RLT) und Kühlung \n(von xx:xx Uhr bis xx:xx Uhr)",null,"Uhrzeit","00:00 Uhr bis\n24:00 Uhr"]
[null,null,"Tägliche Betriebszeit der Heizung \n(von xx:xx Uhr bis xx:xx Uhr)",null,"Uhrzeit","00:00 Uhr bis\n24:00 Uhr"]
[null,null,"Jährliche durchschnittliche Betriebstage jeweils für ",null,"-","-","-"]
[null,null,null,"RLT","d/a",365]
[null,null,null,"Heizung","d/a",365]
[null,null,null,"Kühlung","d/a",365]
[]
[null,"Prozesse & Logistik","Ablauftechnische und organisatorische Anforderungen und Charakteristika"]
[null,null,null,null,"Beschreibung"]
[null,null,"Modulbeschreibung",null,"Modul zum lagern und puffern von Artikeln, Entkopplung von Lieferanten; wenig Personal und Betriebsmittel im Modul"]
[]
[null,null,"Prozesse incl. Beispiel",null,"Lagerung, Pufferung, Warenannahme"]
[]
[null,null,"organisatorische Anforderungen",null,"sichere Versorgung der nachgelagerten Bereiche"]
[]
[null,null,"idealtypische Position in der Prozesskette",null,"am Anfang der Prozesskette für physische Prozesse"]
[]
[]
[null,"Architektur","Architektur (??)"]
[null,null,null,null,"Beschreibung",null,"Erläuterungen"]
[null,null,"…"]
[]
[null,null,"…"]
[]
[null,null,"…"]
[]
[null,null,"Gebäudestruktur"]
[null,null,null,null,"Wert"]
[null,null,"Tageslichtquotient (D)",null,"min: 2%","mittel: 4%","max: 10%"]
[null,null,"Fensterfaktor (KF)",null,"KF > 0,1"]
[null,null,"Sichtbeziehung nach außen",null,"mindestens 10% der Außenwandfläche müssen transparent sein"]
[null,null,"Qualität Innenausbau (1-5)",null,2]
[null,null,"Geometrie"]
[null,null,null,null,"Einheit","Wert","Erläuterungen"]
[null,null,"Raumhöhe"]
[null,null,null,"Handregallager einstöckig (zweistöckig)","m","> 3","Luftraum (LR)"]
[null,null,null,"Palettenlager mit Staplerbetrieb","m","> 6"]
[null,null,null,"Hochregallager mit Hochregalstapler","m","> 9"]
[null,null,null,"Hochregallager mit Stapelkran","m",">25"]
[null,null,"Fläche",null,"Anteil in % an Ages",32]
[null,null,"minimales Raumvolumen",null,"m³","-","keine Vorgabe"]
[null,null,"Geschosse",null,"Anzahl",1]
[]
[null,"Bauphysik1","Raumkonditionierung"]
[null,null,null,null,"Einheit","Wert","Erläuterungen"]
[null,null,"Raum-Solltemperatur Heizung",null,"°C",12]
[null,null,"Raum-Soltemperatur natürliche Lüftung",null,"°C",26,"gem. ArbSättRL"]
[null,null,"Minimaltemperatur Auslegung Heizung",null,"°C",12]
[null,null,"Lüftung",null,"°C",28]
[null,null,"Temperaturabsenkung reduzierter Betrieb",null,"K",0]
[]
[null,null,"Mindestaußenluftvolumenstrom"]
[null,null,null,null,"Einheit","Wert","Erläuterungen"]
[null,null,"Mindestaußenluftvolumenstrom",null,"1/h",0.6,"sofern Zone an Außenwand liegt, kann Wert höher als 0,6 sein."]
[]
[null,null,"Wärmeeinträge"]
[null,null,null,null,"Einheit","Wert","Erläuterungen"]
[null,null,"Maximale Belegungsdichte",null,"m² je Person","-"]
[null,null,"Wärmeenergieeintrag durch Personen  (190W/Person)",null,"W/m²","-"]
[null,null,"Wärmeenergieeintrag durch Anlagen, Transporthilfsmittel etc.",null,"W/m²","-"]
[null,null,"Wärmeenergiezufuhr je Tag",null,"Wh/(m²*d)","-"]
[]
[null,null,"Beleuchtung"]
[null,null,null,null,"Einheit","Wert","Erläuterungen"]
[null,null,"Wartungswert der Beleuchtungsstärke",null,"lx",100]
[]
[null,null,"Bauteile2"]
[null,null,null,null,"Einheit","Wert","Erläuterungen"]
[null,null,"Dach",null,"U-Wert in W/(m²K)",0.2]
[null,null,"Außenwand",null,"U-Wert in W/(m²K)",0.35]
[null,null,"Unterer Gebäudeabschluss",null,"U-Wert in W/(m²K)",0.35]
[null,null,"Innenwand opak",null,"U-Wert in W/(m²K)",2.5]
[]
[null,null,null,"1: Nutzungsrandbedingungen in Anlehnung an DIN V 18599-10\n2: Bauteilqualität in Anlehung an Anforderungen für Nichtwohngebäude nach EnEV'09"]

{"sheet":"Warenausgangslager","index":13,"n_rows":83,"n_cols":7,"rows_kept":83,"cut":false,"hidden":true,"merged":[[0,0,0,7],[1,0,83,0],[1,7,83,7],[2,1,2,6],[3,1,14,1],[3,2,3,6],[5,2,5,3],[6,2,6,3],[7,2,7,3],[8,2,8,3],[24,2,25,3],[24,4,25,6],[9,2,9,3],[10,2,10,3],[11,2,11,3],[12,2,14,2],[15,1,15,6],[16,1,25,1],[16,2,16,6],[17,2,17,3],[17,4,17,6],[18,2,19,3],[18,4,19,6],[20,2,21,3],[20,4,21,6],[22,2,23,3],[22,4,23,6],[37,2,37,3],[26,1,26,6],[27,1,50,1],[27,2,27,6],[27,8,34,8],[28,2,28,3],[28,4,28,5],[29,2,30,3],[29,4,30,5],[31,2,32,3],[31,4,32,5],[33,2,34,3],[33,4,34,5],[35,2,35,6],[36,2,36,3],[36,4,36,6],[38,2,38,3],[38,4,38,6],[39,2,39,3],[39,4,39,6],[40,2,40,3],[40,4,40,6],[41,2,41,6],[42,2,42,3],[42,8,50,8],[43,2,43,4],[43,5,43,6],[44,2,47,2],[44,6,47,6],[49,2,49,3],[50,2,50,3],[51,1,51,6],[52,1,80,1],[52,2,52,6],[53,2,53,3],[54,2,54,3],[55,2,55,3],[56,2,56,3],[57,2,57,3],[58,2,58,3],[59,2,59,3],[73,2,73,3],[60,2,60,6],[61,2,61,3],[62,2,62,3],[64,2,64,6],[65,2,65,3],[66,2,66,3],[67,2,67,3],[68,2,68,3],[69,2,69,3],[71,2,71,6],[72,2,72,3],[82,3,82,6],[83,1,83,6],[75,2,75,6],[76,2,76,3],[77,2,77,3],[78,2,78,3],[79,2,79,3],[80,2,80,3]]}
[]
[null,null,null,"ID-Card","Warenausgangslager"]
[]
[null,"Allgemeine Nutzungsrandbedingungen1","Nutzungszeiten"]
[null,null,null,null,"Einheit","Wert","Erläuterungen"]
[null,null,"Jährliche durchschnittliche Nutzungszeit \n(von xx:xx Uhr bis xx:xx Uhr)",null,"Uhrzeit","00:00 Uhr bis\n24:00 Uhr"]
[null,null,"Anzahl jährliche Nutzungstage",null,"d/a",365]
[null,null,"Jährliche Nutzungsstunden zur Tagzeit \n(Intervall: 06:00 Uhr bis 22:00 Uhr)",null,"h/a",4407]
[null,null,"Jährliche Nutzungsstunden zur Nachtzeit\n(Intervall: 22:00 Uhr bis 06:00 Uhr)",null,"h/a",4353]
[null,null,"Tägliche Betriebszeit der Raumlufttechnik (RLT) und Kühlung \n(von xx:xx Uhr bis xx:xx Uhr)",null,"Uhrzeit","00:00 Uhr bis\n24:00 Uhr"]
[null,null,"Tägliche Betriebszeit der Heizung \n(von xx:xx Uhr bis xx:xx Uhr)",null,"Uhrzeit","00:00 Uhr bis\n24:00 Uhr"]
[null,null,"Jährliche durchschnittliche Betriebstage jeweils für ",null,"-","-","-"]
[null,null,null,"RLT","d/a",365]
[null,null,null,"Heizung","d/a",365]
[null,null,null,"Kühlung","d/a",365]
[]
[null,"Prozesse & Logistik","Ablauftechnische und organisatorische Anforderungen und Charakteristika"]
[null,null,null,null,"Beschreibung"]
[null,null,"Modulbeschreibung",null,"Modul zum lagern und puffern von Artikeln, Entkopplung von Kunden; wenig Personal und Betriebsmittel im Modul"]
[]
[null,null,"Prozesse incl. Beispiel",null,"Lagerung, Pufferung, Komissionierung, Warenausgang"]
[]
[null,null,"organisatorische Anforderungen",null,"sichere Versorgung der Kunden"]
[]
[null,null,"idealtypische Position in der Prozesskette",null,"am Ende der Prozesskette für physische Prozesse"]
[]
[]
[null,"Architektur","Architektur (??)"]
[null,null,null,null,"Beschreibung",null,"Erläuterungen"]
[null,null,"…"]
[]
[null,null,"…"]
[]
[null,null,"…"]
[]
[null,null,"Gebäudestruktur"]
[null,null,null,null,"Wert"]
[null,null,"Tageslichtquotient (D)",null,"min: 2%","mittel: 4%","max: 10%"]
[null,null,"Fensterfaktor (KF)",null,"KF > 0,1"]
[null,null,"Sichtbeziehung nach außen",null,"mindestens 10% der Außenwandfläche müssen transparent sein"]
[null,null,"Qualität Innenausbau (1-5)",null,2]
[null,null,"Geometrie"]
[null,null,null,null,"Einheit","Wert","Erläuterungen"]
[null,null,"Raumhöhe"]
[null,null,null,"Handregallager einstöckig (zweistöckig)","m","> 3","Luftraum (LR)"]
[null,null,null,"Palettenlager mit Staplerbetrieb","m","> 6"]
[null,null,null,"Hochregallager mit Hochregalstapler","m","> 9"]
[null,null,null,"Hochregallager mit Stapelkran","m",">25"]
[null,null,"Fläche",null,"Anteil in % an Ages",32]
[null,null,"minimales Raumvolumen",null,"m³","-","keine Vorgabe"]
[null,null,"Geschosse",null,"Anzahl",1]
[]
[null,"Bauphysik1","Raumkonditionierung"]
[null,null,null,null,"Einheit","Wert","Erläuterungen"]
[null,null,"Raum-Solltemperatur Heizung",null,"°C",12]
[null,null,"Raum-Soltemperatur natürliche Lüftung",null,"°C",26,"gem. ArbSättRL"]
[null,null,"Minimaltemperatur Auslegung Heizung",null,"°C",12]
[null,null,"Lüftung",null,"°C",28]
[null,null,"Temperaturabsenkung reduzierter Betrieb",null,"K",0]
[]
[null,null,"Mindestaußenluftvolumenstrom"]
[null,null,null,null,"Einheit","Wert","Erläuterungen"]
[null,null,"Mindestaußenluftvolumenstrom",null,"1/h",0.6,"sofern Zone an Außenwand liegt, kann Wert höher als 0,6 sein."]
[]
[null,null,"Wärmeeinträge"]
[null,null,null,null,"Einheit","Wert","Erläuterungen"]
[null,null,"Maximale Belegungsdichte",null,"m² je Person","-"]
[null,null,"Wärmeenergieeintrag durch Personen  (190W/Person)",null,"W/m²","-"]
[null,null,"Wärmeenergieeintrag durch Anlagen, Transporthilfsmittel etc.",null,"W/m²","-"]
[null,null,"Wärmeenergiezufuhr je Tag",null,"Wh/(m²*d)","-"]
[]
[null,null,"Beleuchtung"]
[null,null,null,null,"Einheit","Wert","Erläuterungen"]
[null,null,"Wartungswert der Beleuchtungsstärke",null,"lx",100]
[]
[null,null,"Bauteile2"]
[null,null,null,null,"Einheit","Wert","Erläuterungen"]
[null,null,"Dach",null,"U-Wert in W/(m²K)",0.2]
[null,null,"Außenwand",null,"U-Wert in W/(m²K)",0.35]
[null,null,"Unterer Gebäudeabschluss",null,"U-Wert in W/(m²K)",0.35]
[null,null,"Innenwand opak",null,"U-Wert in W/(m²K)",2.5]
[]
[null,null,null,"1: Nutzungsrandbedingungen in Anlehnung an DIN V 18599-10\n2: Bauteilqualität in Anlehung an Anforderungen für Nichtwohngebäude nach EnEV'09"]

{"sheet":"Büro- & Sozialräume","index":14,"n_rows":83,"n_cols":7,"rows_kept":83,"cut":false,"hidden":true,"merged":[[0,0,0,7],[1,0,83,0],[1,7,83,7],[2,1,2,6],[3,1,14,1],[3,2,3,6],[5,2,5,3],[6,2,6,3],[7,2,7,3],[8,2,8,3],[24,2,25,3],[24,4,25,6],[9,2,9,3],[10,2,10,3],[11,2,11,3],[12,2,14,2],[15,1,15,6],[16,1,25,1],[16,2,16,6],[17,2,17,3],[17,4,17,6],[18,2,19,3],[18,4,19,6],[20,2,21,3],[20,4,21,6],[22,2,23,3],[22,4,23,6],[37,2,37,3],[26,1,26,6],[27,1,50,1],[27,2,27,6],[27,8,34,8],[28,2,28,3],[28,4,28,5],[29,2,30,3],[29,4,30,5],[31,2,32,3],[31,4,32,5],[33,2,34,3],[33,4,34,5],[35,2,35,6],[36,2,36,3],[36,4,36,6],[38,2,38,3],[38,4,38,6],[39,2,39,3],[39,4,39,6],[40,2,40,3],[40,4,40,6],[41,2,41,6],[42,2,42,3],[42,8,50,8],[43,2,43,4],[43,5,43,6],[44,2,47,2],[44,6,47,6],[49,2,49,3],[50,2,50,3],[51,1,51,6],[52,1,80,1],[52,2,52,6],[53,2,53,3],[54,2,54,3],[55,2,55,3],[56,2,56,3],[57,2,57,3],[58,2,58,3],[59,2,59,3],[73,2,73,3],[60,2,60,6],[61,2,61,3],[62,2,62,3],[64,2,64,6],[65,2,65,3],[66,2,66,3],[67,2,67,3],[68,2,68,3],[69,2,69,3],[71,2,71,6],[72,2,72,3],[82,3,82,6],[83,1,83,6],[75,2,75,6],[76,2,76,3],[77,2,77,3],[78,2,78,3],[79,2,79,3],[80,2,80,3]]}
[]
[null,null,null,"ID-Card","Büro- & Sozialräume"]
[]
[null,"Allgemeine Nutzungsrandbedingungen1","Nutzungszeiten"]
[null,null,null,null,"Einheit","Wert","Erläuterungen"]
[null,null,"Jährliche durchschnittliche Nutzungszeit \n(von xx:xx Uhr bis xx:xx Uhr)",null,"Uhrzeit","07:00 Uhr bis\n18:00 Uhr"]
[null,null,"Anzahl jährliche Nutzungstage",null,"d/a",250]
[null,null,"Jährliche Nutzungsstunden zur Tagzeit \n(Intervall: 06:00 Uhr bis 22:00 Uhr)",null,"h/a",2543]
[null,null,"Jährliche Nutzungsstunden zur Nachtzeit\n(Intervall: 22:00 Uhr bis 06:00 Uhr)",null,"h/a",207]
[null,null,"Tägliche Betriebszeit der Raumlufttechnik (RLT) und Kühlung \n(von xx:xx Uhr bis xx:xx Uhr)",null,"Uhrzeit","05:00 Uhr bis\n18:00 Uhr"]
[null,null,"Tägliche Betriebszeit der Heizung \n(von xx:xx Uhr bis xx:xx Uhr)",null,"Uhrzeit","05:00 Uhr bis\n18:00 Uhr"]
[null,null,"Jährliche durchschnittliche Betriebstage jeweils für ",null,"-","-","-"]
[null,null,null,"RLT","d/a",250]
[null,null,null,"Heizung","d/a",250]
[null,null,null,"Kühlung","d/a",250]
[]
[null,"Prozesse & Logistik","Ablauftechnische und organisatorische Anforderungen und Charakteristika"]
[null,null,null,null,"Beschreibung"]
[null,null,"Modulbeschreibung",null,"hoher Anteil an Personen und EDV-Hilfsmitteln; geringe Frequentierung im Falle von Umkleiden"]
[]
[null,null,"Prozesse incl. Beispiel",null,"Informations- und Wissensgenerierung, -verarbeitung und -weitergabe, verwaltende Aufgaben, Einkleiden von Personal"]
[]
[null,null,"organisatorische Anforderungen",null,"keine besonderen Anforderungen"]
[]
[null,null,"idealtypische Position in der Prozesskette",null,"vor der Fertigung und innerhalb der gesamten Prozesskette"]
[]
[]
[null,"Architektur","Architektur (??)"]
[null,null,null,null,"Beschreibung",null,"Erläuterungen"]
[null,null,"…"]
[]
[null,null,"…"]
[]
[null,null,"…"]
[]
[null,null,"Gebäudestruktur"]
[null,null,null,null,"Wert"]
[null,null,"Tageslichtquotient (D)",null,"min: 2%","mittel: 4%","max: 10%"]
[null,null,"Fensterfaktor (KF)",null,"KF > 0,1"]
[null,null,"Sichtbeziehung nach außen",null,"mindestens 10% der Außenwandfläche müssen transparent sein"]
[null,null,"Qualität Innenausbau (1-5)",null,4]
[null,null,"Geometrie"]
[null,null,null,null,"Einheit","Wert","Erläuterungen"]
[null,null,"Raumhöhe"]
[null,null,null,"13 bis 50 m² Raumfläche","m","> 2,50","Luftraum (LR)"]
[null,null,null,"50 m² bis 100 m² Raumfläche","m","> 2,75"]
[null,null,null,"100 - 2000 m² Raumfläche","m","> 3,00"]
[null,null,null,"mehr als 2000 m² Raumfläche","m","> 3,25"]
[null,null,"Fläche",null,"Anteil in % an Ages",16]
[null,null,"minimales Raumvolumen",null,"m³",32.5,"pro Mitarbeiter"]
[null,null,"Geschosse",null,"Anzahl","1"]
[]
[null,"Bauphysik1","Raumkonditionierung"]
[null,null,null,null,"Einheit","Wert","Erläuterungen"]
[null,null,"Raum-Solltemperatur Heizung",null,"°C",21]
[null,null,"Raum-Soltemperatur natürliche Lüftung",null,"°C",24]
[null,null,"Minimaltemperatur Auslegung Heizung",null,"°C",20]
[null,null,"Lüftung",null,"°C",26]
[null,null,"Temperaturabsenkung reduzierter Betrieb",null,"K",4]
[]
[null,null,"Mindestaußenluftvolumenstrom"]
[null,null,null,null,"Einheit","Wert","Erläuterungen"]
[null,null,"Mindestaußenluftvolumenstrom",null,"1/h",0.6,"sofern Zone an Außenwand liegt, kann Wert höher als 0,6 sein."]
[]
[null,null,"Wärmeeinträge"]
[null,null,null,null,"Einheit","Wert","Erläuterungen"]
[null,null,"Maximale Belegungsdichte",null,"m² je Person","ca. 14"]
[null,null,"Wärmeenergieeintrag durch Personen  (190W/Person)",null,"W/m²","ca. 10"]
[null,null,"Wärmeenergieeintrag durch Anlagen, Transporthilfsmittel etc.",null,"W/m²","ca. 10"]
[null,null,"Wärmeenergiezufuhr je Tag",null,"Wh/(m²*d)","-"]
[]
[null,null,"Beleuchtung"]
[null,null,null,null,"Einheit","Wert","Erläuterungen"]
[null,null,"Wartungswert der Beleuchtungsstärke",null,"lx",500]
[]
[null,null,"Bauteile2"]
[null,null,null,null,"Einheit","Wert","Erläuterungen"]
[null,null,"Dach",null,"U-Wert in W/(m²K)",0.2]
[null,null,"Außenwand",null,"U-Wert in W/(m²K)",0.35]
[null,null,"Unterer Gebäudeabschluss",null,"U-Wert in W/(m²K)",0.35]
[null,null,"Innenwand opak",null,"U-Wert in W/(m²K)",2.5]
[]
[null,null,null,"1: Nutzungsrandbedingungen in Anlehnung an DIN V 18599-10\n2: Bauteilqualität in Anlehung an Anforderungen für Nichtwohngebäude nach EnEV'09"]

{"sheet":"Auswertung Logistik","index":15,"n_rows":8,"n_cols":26,"rows_kept":8,"cut":false,"hidden":true,"merged":[]}
[null,"Fertigung","Montage","Wareneingang","Warenausgang","Produktions-lager","Büro- und Sozialräume","Technik",null,"MATERIALFLUSS","Fertigung","Montage","Wareneingang","Warenausgang","Produktions-lager","Büro- und Sozialräume","Technik",null,"KOMMUNIKATIONSFLUSS","Fertigung","Montage","Wareneingang","Warenausgang","Produktions-lager","Büro- und Sozialräume","Technik"]
["Fertigung",null,null,null,null,null,null,null,null,"Fertigung",null,0,0,0,0,0,0,null,"Fertigung",null,0,0,0,0,0,0]
["Montage",1,null,null,null,null,null,null,null,"Montage",0.19014084507042253,null,0,0,0,0,0,null,"Montage",7.9646017699115043E-2,null,0,0,0,0,0]
["Wareneingang",1,1,null,null,null,null,null,null,"Wareneingang",0.21126760563380281,0.14084507042253522,null,0,0,0,0,null,"Wareneingang",6.1946902654867256E-2,6.1946902654867256E-2,null,0,0,0,0]
["Warenausgang",null,1,null,null,null,null,null,null,"Warenausgang",0,0.24647887323943662,0,null,0,0,0,null,"Warenausgang",0,7.9646017699115043E-2,0,null,0,0,0]
["Produktionslager",1,1,1,null,null,null,null,null,"Produktionslager",2.1126760563380281E-2,8.4507042253521125E-2,0,0,null,0,0,null,"Produktionslager",7.9646017699115043E-2,7.0796460176991149E-2,1.7699115044247787E-2,0,null,0,0]
["Büro- und Sozialräume",1,null,1,null,null,null,null,null,"Büro- und Sozialräume",0,0,0,0,0,null,0,null,"Büro- und Sozialräume",7.9646017699115043E-2,0,7.9646017699115043E-2,0,0,null,0]
["Technik",null,1,null,1,null,null,null,null,"Technik",0,0,0,0,0,0,null,null,"Technik",0,1.7699115044247787E-2,0,1.7699115044247787E-2,0,0]

{"sheet":"Auswertung Bauphysik","index":16,"n_rows":10,"n_cols":42,"rows_kept":10,"cut":false,"hidden":true,"merged":[]}
["Punktetabelle","Fertigung 100 W/m²","Fertigung 300 W/m²","Fertigung 500 W/m²","Montage","Lager","Büro- und Sozialräume","Technik","Außenbereiche",null,"Tabelle mit Anzahl  wirksamer Flächen","Fertigung 100 W/m²","Fertigung 300 W/m²","Fertigung 500 W/m²","Montage","Lager","Büro- und Sozialräume","Technik","Außenbereiche","Summe",null,"Tabelle mit Anzahl  wirksamer Flächen notmiert auf Gesamtanzahl","Fertigung 100 W/m²","Fertigung 300 W/m²","Fertigung 500 W/m²","Montage","Lager","Büro- und Sozialräume","Technik","Außenbereiche","Summe",null,"Tabelle mit normierter Anzahl  wirksamer Flächen multipliziert mit Punkten","Fertigung 100 W/m²","Fertigung 300 W/m²","Fertigung 500 W/m²","Montage","Lager","Büro- und Sozialräume","Technik","Außenbereiche","Summe"]
["Fertigung 100 W/m²","-","-","-","-","-","-","-","-",null,"Fertigung 100 W/m²",null,null,null,null,null,null,null,null,{"$f":"SUM(L2:S2)","v":0},null,"Fertigung 100 W/m²","-","-","-","-","-","-","-","-",{"$f":"SUM(W2:AD2)","v":0},null,"Fertigung 100 W/m²",{"$f":"IF(B2<>\"-\",B2*W2,\"-\")","v":"-"},{"$f":"IF(C2<>\"-\",C2*X2,\"-\")","v":"-"},"-","-","-","-","-","-",{"$f":"SUM(AH2:AO2)","v":0}]
["Fertigung 300 W/m²","-","-","-","-","-","-","-","-",null,"Fertigung 300 W/m²",null,null,null,null,null,null,null,null,{"$f":"SUM(L3:S3)","v":0},null,"Fertigung 300 W/m²","-","-","-","-","-","-","-","-",{"$f":"SUM(W3:AD3)","v":0},null,"Fertigung 300 W/m²",{"$f":"IF(B3<>\"-\",B3*W3,\"-\")","v":"-"},"-","-","-","-","-","-","-",{"$f":"SUM(AH3:AO3)","v":0}]
["Fertigung 500 W/m²","-","-","-","-","-","-","-","-",null,"Fertigung 500 W/m²",null,null,null,null,null,null,null,null,0,null,"Fertigung 500 W/m²","-","-","-","-","-","-","-","-",0,null,"Fertigung 500 W/m²","-","-","-","-","-","-","-","-",0]
["Montage",1,1,1,"-","-","-","-","-",null,"Montage",3,null,null,null,null,null,null,null,3,null,"Montage",{"$f":"IF($T$10>0,L5/$T$10,0)","v":3.7037037037037035E-2},{"$f":"IF($T$10>0,M5/$T$10,0)","v":0},{"$f":"IF($T$10>0,N5/$T$10,0)","v":0},"-","-","-","-","-",3.7037037037037035E-2,null,"Montage",3.7037037037037035E-2,0,0,"-","-","-","-","-",3.7037037037037035E-2]
["Lager",1,1,1,1,"-","-","-","-",null,"Lager",6,null,null,9,null,null,null,null,15,null,"Lager",7.407407407407407E-2,0,0,{"$f":"IF($T$10>0,O6/$T$10,0)","v":0.1111111111111111},"-","-","-","-",0.18518518518518517,null,"Lager",7.407407407407407E-2,0,0,0.1111111111111111,"-","-","-","-",0.18518518518518517]
["Büro- und Sozialräume",1,0,0,1,0,"-","-","-",null,"Büro- und Sozialräume",3,null,null,null,4,null,null,null,7,null,"Büro- und Sozialräume",3.7037037037037035E-2,0,0,0,{"$f":"IF($T$10>0,P7/$T$10,0)","v":4.9382716049382713E-2},"-","-","-",8.6419753086419748E-2,null,"Büro- und Sozialräume",3.7037037037037035E-2,0,0,0,0,"-","-","-",3.7037037037037035E-2]
["Technik",0,0,0,0,1,0,"-","-",null,"Technik",null,null,null,2,null,2,null,null,4,null,"Technik",0,0,0,2.4691358024691357E-2,0,{"$f":"IF($T$10>0,Q8/$T$10,0)","v":2.4691358024691357E-2},"-","-",4.9382716049382713E-2,null,"Technik",0,0,0,0,0,0,"-","-",0]
["Außenbereiche",0,1,1,1,0,0,1,"-",null,"Außenbereiche",8,null,null,12,15,13,4,null,{"$f":"SUM(L9:S9)","v":52},null,"Außenbereiche",9.8765432098765427E-2,0,0,0.14814814814814814,0.18518518518518517,0.16049382716049382,{"$f":"IF($T$10>0,R9/$T$10,0)","v":4.9382716049382713E-2},"-",{"$f":"SUM(W9:AD9)","v":0.64197530864197527},null,"Außenbereiche",0,0,0,0.14814814814814814,0,0,4.9382716049382713E-2,"-",{"$f":"SUM(AH9:AO9)","v":0.19753086419753085}]
[null,null,null,null,null,null,null,null,null,null,"Summe",{"$f":"SUM(L2:L9)","v":20},{"$f":"SUM(M2:M9)","v":0},0,23,19,15,4,{"$f":"SUM(S2:S9)","v":0},{"$f":"SUM(L2:S9)","v":81},null,"Summe",{"$f":"SUM(W2:W9)","v":0.24691358024691357},{"$f":"SUM(X2:X9)","v":0},{"$f":"SUM(Y2:Y9)","v":0},{"$f":"SUM(Z2:Z9)","v":0.2839506172839506},{"$f":"SUM(AA2:AA9)","v":0.23456790123456789},{"$f":"SUM(AB2:AB9)","v":0.18518518518518517},{"$f":"SUM(AC2:AC9)","v":4.9382716049382713E-2},{"$f":"SUM(AD2:AD9)","v":0},{"$f":"SUM(W2:AD9)","v":1},null,"Summe",{"$f":"SUM(AH2:AH9)","v":0.14814814814814814},{"$f":"SUM(AI2:AI9)","v":0},{"$f":"SUM(AJ2:AJ9)","v":0},{"$f":"SUM(AK2:AK9)","v":0.25925925925925924},{"$f":"SUM(AL2:AL9)","v":0},{"$f":"SUM(AM2:AM9)","v":0},{"$f":"SUM(AN2:AN9)","v":4.9382716049382713E-2},{"$f":"SUM(AO2:AO9)","v":0},{"$f":"SUM(AH2:AO9)","v":0.4567901234567901}]